Cogmind - Beta 15 @@@ ROGUE MODE // 2025.10.11 @ 13:47:54 Player: beans Result: Destroyed by G-73 Enforcer with Phase Gun Performance ------------- Evolutions (7) 3500 Regions Visited (28) 5600 Robots Destroyed (318) 1590 Value Destroyed (12135) 12135 Prototype IDs (61) 1220 Alien Tech Used (0) 0 Bonus (10850) 10850 TOTAL SCORE: 34895 Bonus ------- Triggered Max Security 1000 High Alert Combat Kills 3162 Follower Combat Kills 2321 Aligned with FarCom 300 Met Data Miner 300 Met Imprinter 300 Met Zhirov 300 Built Enhanced Grunts 300 A7 Reached Mainframe 300 Met R17 at Cetus 500 Met R17 at Research 2000 Scanned by Researcher 500 Friendly Fire -433 Cogmind --------- Core Integrity 0/1300 Matter 252/300 Energy 100/100 System Corruption 28% Temperature Cool (0) Movement Core (50) Location -3/Quarantine Parts ------- > --- POWER (2) -------- (None) > --- PROPULSION (4) --- (None) > --- UTILITY (9) ------ (None) > --- WEAPON (6) ------- (None) > --- INVENTORY (5) ---- Mobile Refinery Mk. CCLXVII Improved Field Recycling Unit (0) AWS/Gauss Peak State ------------ > --- POWER ------------ Quantum Reactor Quantum Reactor > --- PROPULSION ------- Centrium Heavy Treads Centrium Heavy Treads > --- UTILITY ---------- Advanced Heat Sink Experimental Coolant Injector Large Storage Unit Experimental Matter Compressor 0b10 Decoder Chip [Generic] Improved Armor Integrity Analyzer Advanced Transmission Jammer Centrium Medium Armor Plating Advanced Hacking Suite > --- WEAPON ----------- Quantum Rifle Quantum Rifle Railgun Railgun Railgun Railgun > --- INVENTORY -------- Light Antimatter Reactor Cooled Antimatter Reactor Launcher Loader Mobile Refinery Mk. CCLXVII Improved Field Recycling Unit Railgun Railgun Railgun AWS/Gauss Smartbomb Launcher Improved Remote Datajack [Rating: 165] Favorites ----------- Power Neutrino Core Engine Light Angular Momentum Engine Power Core Neutrino Core Reactor Light Antimatter Reactor Propulsion Myomer Leg Treads Heavy Treads Leg Myomer Leg Wheel Compact Wheel Hover Unit Improved Gyrokinetic Inverter Flight Unit Impulse Thruster Array Utility 0b10 Decoder Chip [Generic] Device Advanced Heat Sink Storage Experimental Matter Compressor Processor 0b10 Decoder Chip [Generic] Hackware Advanced Hacking Suite Protection Makeshift Propulsion Shielding Weapon Railgun Energy Gun Plasma Rifle Energy Cannon Disruptor Cannon Ballistic Gun Railgun Ballistic Cannon Heavy Gauss Cannon Launcher Scatter Rocket Array Special Weapon Improved Plasma Cutter Slashing Weapon Ionic Axe Build | -11 -10 -10 -10 -9 -8 -7 -7 -7 -7 -7 -7 -6 -6 -6 -6 -6 -5 -5 -5 -5 -5 -4 -4 -4 -4 -4 -3 -3 ------- Run | Yrd Mat Min Exi Min Mat Fac Was Fac Low Low Zio Pro Fac Low Low Dat Pro Fac Upp Upp Zhi Pro Fac Ext Cet Arc Res Qua Slots Evolved 14 | . . . . . 4 2 . . . . . . 2 . . . . 2 . . . . 2 . . . 2 . Power 1 | . . . . . 1 . . . . . . . . . . . . . . . . . . . . . . . Propulsion 2 | . . . . . . 2 . . . . . . . . . . . . . . . . . . . . . . Utility 7 | . . . . . 2 . . . . . . . 2 . . . . 2 . . . . 1 . . . . . Weapon 4 | . . . . . 1 . . . . . . . . . . . . . . . . . 1 . . . 2 . Parts Attached 204 | 3 5 4 . 7 11 2 2 9 1 3 1 7 26 2 8 . 11 4 . 1 4 4 1 64 5 3 8 8 Power 28 | . 1 1 . 2 1 . . . . 1 . 2 1 . 1 . 2 1 . . 1 . 1 8 2 . 2 1 Engine 5 | . . . . . . . . . . . . 2 . . 1 . . . . . . . . 2 . . . . Core 15 | . 1 1 . 2 1 . . . . 1 . . 1 . . . 2 1 . . . . 1 4 . . . . Reactor 8 | . . . . . . . . . . . . . . . . . . . . . 1 . . 2 2 . 2 1 Propulsion 42 | 2 . . . 2 4 . 1 . . 2 . . 5 . 1 . 2 1 . 1 1 . . 17 2 . . 1 Treads 15 | 2 . . . . 3 . 1 . . 2 . . 1 . . . . . . 1 . . . 3 2 . . . Leg 11 | . . . . 2 1 . . . . . . . 1 . . . 1 . . . . . . 6 . . . . Wheel 1 | . . . . . . . . . . . . . 1 . . . . . . . . . . . . . . . Hover 14 | . . . . . . . . . . . . . 2 . 1 . 1 1 . . 1 . . 8 . . . . Flight 1 | . . . . . . . . . . . . . . . . . . . . . . . . . . . . 1 Utility 53 | . 2 . . 2 3 1 . 1 1 . 1 1 8 2 3 . 2 2 . . 2 2 . 16 1 1 1 1 Device 28 | . 1 . . 1 2 1 . . . . 1 1 4 1 1 . 2 2 . . . 1 . 8 . 1 1 . Storage 7 | . . . . . . . . . . . . . 1 . 1 . . . . . 2 . . 3 . . . . Processor 12 | . 1 . . 1 1 . . 1 . . . . 2 . 1 . . . . . . . . 5 . . . . Hackware 2 | . . . . . . . . . . . . . . 1 . . . . . . . 1 . . . . . . Protection 4 | . . . . . . . . . 1 . . . 1 . . . . . . . . . . . 1 . . 1 Artifact . | . . . . . . . . . . . . . . . . . . . . . . . . . . . . . Weapon 81 | 1 2 3 . 1 3 1 1 8 . . . 4 12 . 3 . 5 . . . . 2 . 23 . 2 5 5 Energy Gun 14 | . 1 1 . 1 1 . . . . . . . 1 . . . . . . . . . . 5 . 2 2 . Energy Cannon 9 | . . . . . . 1 1 . . . . 2 1 . . . 1 . . . . 1 . 2 . . . . Ballistic Gun 35 | 1 . 2 . . 1 . . 5 . . . 2 4 . 3 . 2 . . . . . . 8 . . 3 4 Ballistic Cannon 14 | . . . . . 1 . . 2 . . . . 5 . . . 1 . . . . 1 . 4 . . . . Launcher 6 | . 1 . . . . . . 1 . . . . 1 . . . 1 . . . . . . 1 . . . 1 Special Weapon 2 | . . . . . . . . . . . . . . . . . . . . . . . . 2 . . . . Impact Weapon . | . . . . . . . . . . . . . . . . . . . . . . . . . . . . . Slashing Weapon 1 | . . . . . . . . . . . . . . . . . . . . . . . . 1 . . . . Piercing Weapon . | . . . . . . . . . . . . . . . . . . . . . . . . . . . . . Special Melee Weapon . | . . . . . . . . . . . . . . . . . . . . . . . . . . . . . Unidentified Prototypes 18 | . . . . . . 1 1 2 . . 1 . 3 . . . . . . . 4 . . 2 2 . 2 . Corrupted Parts 2 | . . . . . . . . . . . . 2 . . . . . . . . . . . . . . . . System Corruption 4 | . . . . . . . . . . . . 4 . . . . . . . . . . . . . . . . Parts Lost 109 | . . 1 . 3 5 . 2 . 1 8 . 5 16 4 1 3 4 . . . . 3 . 27 2 1 4 19 Power 16 | . . . . . . . . . 1 2 . . 2 . . . 1 . . . . . . 6 1 . . 3 Propulsion 20 | . . . . 2 2 . 1 . . 2 . . 3 1 . 1 1 . . . . . . 4 1 . . 2 Utility 29 | . . . . 1 1 . . . . . . 2 6 1 . 1 . . . . . 3 . 7 . 1 2 4 Weapon 44 | . . 1 . . 2 . 1 . . 4 . 3 5 2 1 1 2 . . . . . . 10 . . 2 10 Highest Loss Streak 12 | . . 1 . 3 3 . 1 . 1 6 . 3 10 2 1 3 2 . . . . 1 . 12 2 1 2 11 To Critical Strikes 4 | . . . . . . . 1 . . . . . . . . . . . . . . . . 1 2 . . . Average Backups 5 | . 1 3 4 3 2 2 3 3 4 3 3 3 4 3 3 4 3 4 4 5 4 4 4 6 9 11 11 11 Power . | . . 1 . . . . . . . . . . . . . . . . . . . . . . . 1 2 2 Propulsion . | . . 1 . . . . . . . . . . . . . . . . . . . . . . . . . . Utility 1 | . . . 2 1 . 1 . . . . 1 1 1 . . 1 . 1 1 1 1 1 1 2 3 3 3 2 Weapon 3 | . . 1 1 2 2 1 2 3 4 3 2 2 2 2 2 3 2 3 3 4 3 3 3 3 5 6 5 4 Tool/Special . | . . . . . . . . . . . . . . . . . . . . . . . . . . . . . Unused Backups 10 | . . . 1 . 2 . . . . . . 1 . . . . . . . . . . . 3 1 . . 2 Power . | . . . . . . . . . . . . . . . . . . . . . . . . . . . . . Propulsion 4 | . . . 1 . . . . . . . . . . . . . . . . . . . . 1 1 . . 1 Utility 3 | . . . . . . . . . . . . 1 . . . . . . . . . . . 1 . . . 1 Weapon 3 | . . . . . 2 . . . . . . . . . . . . . . . . . . 1 . . . . Tool/Special . | . . . . . . . . . . . . . . . . . . . . . . . . . . . . . Average Slot Usage (%) 69 | . 74 99 100 89 74 73 53 59 63 65 39 66 60 24 51 48 42 71 75 70 70 68 62 83 83 86 82 68 Engine 1 | . . . . . . . . . . . . 10 8 . 5 6 3 . . . . . . 1 . . . . Core 4 | . 9 14 14 14 13 15 11 14 7 7 . . . . . . 1 11 11 11 5 5 5 2 . . . . Reactor 2 | . . . . . . . . . . . . . . . . . . . . . 4 5 4 3 7 10 7 4 Treads 5 | . 28 28 28 7 5 15 11 7 7 6 7 7 4 . . . . . . 1 5 5 5 2 6 10 9 7 Leg 2 | . . . . 12 6 . . . . . . . . . . . . 4 . . . . . 7 6 . . . Hover 1 | . . . . . . . . . . . . . 1 . 4 6 . . 5 3 . . . 5 . . . . Device 11 | . 9 14 14 11 11 20 14 7 7 7 7 8 6 5 6 5 . 15 23 23 22 12 5 11 15 12 12 7 Storage 4 | . . . . . . . . . . . . . 4 . 5 6 6 5 5 5 5 5 5 7 10 10 9 7 Processor 12 | . 3 14 14 14 18 8 7 8 15 15 15 11 6 6 7 13 13 11 11 11 11 11 10 17 10 10 9 8 Hackware 3 | . . . . . . . . . . . . . . 3 6 6 6 5 5 5 5 6 10 5 5 5 4 3 Protection 1 | . . . . . . . . . 1 7 6 7 6 . . . . . . . . . . . 4 4 4 4 Energy Gun 2 | . 9 14 14 20 16 4 . . . . . . . . . . . . . . . . . 2 . 7 5 2 Ballistic Gun 7 | . 14 13 14 7 1 . . 11 15 11 . 3 9 . 13 2 4 7 5 5 5 8 10 7 15 12 15 15 Ballistic Cannon 2 | . . . . . . 7 3 6 7 6 1 5 6 3 . . 4 5 3 . . . 5 2 . . . . Peak Build Rating 165 | 3 12 13 14 19 37 37 54 45 45 50 25 44 63 29 47 47 64 83 80 86 93 92 77 125 143 147 165 162 Average Rating 66 | 2 8 12 13 15 24 34 34 39 42 38 21 38 49 19 35 35 35 69 79 75 85 83 76 94 126 143 153 126 On Entrance 53 | . 3 12 13 14 19 33 34 23 45 45 24 25 35 24 20 47 37 62 80 74 80 92 77 77 121 143 147 155 Naked Turns 7 | . . . . . . . . . . . . . . . . . . . . . . . . . . . . 7 Heaviest Build 108 | 2 11 12 12 16 32 33 43 33 30 32 10 44 55 22 26 26 50 47 47 38 49 52 52 93 96 96 108 105 Greatest Support 160 | 40 40 40 40 40 40 40 110 70 70 70 30 30 30 20 9 9 15 15 11 70 70 70 70 100 160 160 160 160 Greatest Overweight (x) 17 | . . . . 5 5 . 1 . . 8 . 1 17 2 6 7 10 4 4 3 . . . 8 . . . . Average Overweight (x) . | . . . . . . . . . . . . . 1 1 1 1 5 2 3 2 . . . . . . . . Largest Inventory Capacity 15 | 5 5 5 5 5 5 5 5 5 5 5 5 5 5 5 5 5 5 5 5 5 5 5 5 15 15 15 15 15 Average Capacity 7 | 5 5 5 5 5 5 5 5 5 5 5 5 5 5 5 5 5 5 5 5 5 5 5 5 10 15 15 15 13 Most Carried 15 | 3 3 5 5 5 5 5 5 5 5 5 5 5 5 5 5 5 5 5 5 5 5 5 5 15 15 15 15 15 Average Carried 6 | . 1 3 4 4 2 4 4 4 5 4 4 4 4 4 4 5 4 4 4 5 4 4 5 8 12 14 14 12 Final Capacity 15 | 5 5 5 5 5 5 5 5 5 5 5 5 5 5 5 5 5 5 5 5 5 5 5 5 15 15 15 15 5 Final Carried 15 | . 3 5 5 4 5 5 5 5 5 3 5 5 5 4 5 5 5 5 5 5 5 5 5 12 12 15 15 4 Class Distribution -------------------- 20% | Mutant 18% | Derelict-Mutant 10% | Scavenger-Gunner 10% | Scavenger-Mutant 9% | Scavenger-Skirmisher 7% | Skirmisher 7% | Gunner 3% | Derelict-Tank 3% | Scavenger-Tank 3% | Scavenger-Executioner Dominant Class ---------------- Mutant | -10/Materials Scavenger-Mutant | -10/Mines Scavenger-Mutant | -10/Exiles Scavenger-Mutant | -9/Mines Mutant | -8/Materials Scavenger-Gunner | -7/Factory Mutant | -7/Waste Tank | -7/Factory Gunner | -7/Lower Caves Gunner | -7/Lower Caves Mutant | -7/Zion Gunner | -6/Proximity Caves Skirmisher | -6/Factory Mutant | -6/Lower Caves Derelict-Mutant | -6/Lower Caves Derelict-Mutant | -6/Data Miner Derelict-Mutant | -5/Proximity Caves Scavenger-Skirmisher | -5/Factory Scavenger-Gunner | -5/Upper Caves Scavenger-Mutant | -5/Upper Caves Derelict-Mutant | -5/Zhirov Derelict-Tank | -4/Proximity Caves Derelict-Tank | -4/Factory Scavenger-Skirmisher | -4/Extension Scavenger-Tank | -4/Cetus Scavenger-Tank | -4/Archives Scavenger-Executioner | -3/Research Scavenger-Executioner | -3/Quarantine Resources | -11 -10 -10 -10 -9 -8 -7 -7 -7 -7 -7 -7 -6 -6 -6 -6 -6 -5 -5 -5 -5 -5 -4 -4 -4 -4 -4 -3 -3 ----------- Run | Yrd Mat Min Exi Min Mat Fac Was Fac Low Low Zio Pro Fac Low Low Dat Pro Fac Upp Upp Zhi Pro Fac Ext Cet Arc Res Qua Matter Collected 14555 | 230 192 80 . 87 110 27 204 474 378 420 39 264 1707 528 420 . 747 101 191 10 353 375 . 5404 522 138 936 618 Remotely 548 | . . . . . . . . . . . . . . . . . 26 101 191 10 103 117 . . . . . . Salvage Created 17400 | . 326 114 . 201 844 15 690 547 289 207 . 665 2033 145 57 . 358 84 262 . 103 302 30 6699 415 82 1245 1687 Parts 683 | . 23 10 . 10 53 1 4 37 7 8 . 21 92 8 5 . 12 4 9 . . 8 1 226 25 4 46 69 Haulers Intercepted 47 | . 2 . . . 2 . . 2 . . . . 1 . . . . . . . . . . 39 . . 1 . Recyclers Shooed 16 | . 1 . . . 2 . . 3 . . . . 9 . . . . 1 . . . . . . . . . . Parts Field Recycled 267 | . . . . . . . . . . . . . . . . . . . . . . . . 267 . . . . Retrieved Matter 1872 | . . . . . . . . . . . . . . . . . . . . . . . . 1872 . . . . Parts Self-Destructed 71 | . . . . . . . . . 7 11 . 26 . 1 8 . 8 . 3 . . 7 . . . . . . Prevented 12 | . . . . . . . . . 4 2 . 5 . . . . . . . . . 1 . . . . . . Kills | -11 -10 -10 -10 -9 -8 -7 -7 -7 -7 -7 -7 -6 -6 -6 -6 -6 -5 -5 -5 -5 -5 -4 -4 -4 -4 -4 -3 -3 ------- Run | Yrd Mat Min Exi Min Mat Fac Was Fac Low Low Zio Pro Fac Low Low Dat Pro Fac Upp Upp Zhi Pro Fac Ext Cet Arc Res Qua Combat Hostiles Destroyed 209 | . 4 4 . 6 12 . 3 1 5 4 . 17 37 7 1 . 8 2 8 . . 8 . 36 7 1 17 21 Guns 116 | . 3 4 . 6 11 . . 1 3 2 . 3 11 . 1 . . 1 4 . . 4 . 25 7 1 12 17 Cannons 48 | . . . . . . . 3 . 2 2 . 5 18 3 . . 3 1 . . . 3 . 8 . . . . AOE 44 | . 1 . . . . . . . . . . 9 8 4 . . 5 . 4 . . 1 . 3 . . 5 4 Classes Destroyed 24 | . 5 2 . 2 2 . 1 1 2 1 . 3 1 . . . . . . . . . . 1 . . 2 1 Worker 32 | . 2 1 . 1 2 . . 4 . . . . 9 . . . . . . . . . 1 7 . . 5 . Builder 16 | . 1 . . . 2 . . 2 . . . . 5 . . . . . . . . . . 6 . . . . Tunneler 3 | . . . . . . . . . . . . . 1 . . . . . . . . . . 2 . . . . Hauler 47 | . 2 . . . 2 . . 2 . . . . 1 . . . . . . . . . . 39 . . 1 . Recycler 17 | . . . . 1 1 . . 4 . . . . 7 . . . . . . . . . . 3 . . 1 . Mechanic 2 | . . . . . . . . . . . . . . . . . . . . . . . . . . . . 2 Operator 1 | . . . . . . . . . . . . . . . . . . . . . . . . 1 . . . . Watcher 13 | . 1 . . . 2 1 . 2 . . . . 2 . . . . . . . . . . 3 1 . 1 . Swarmer 55 | . . 3 . . 2 . . . 2 . . 1 22 4 . . . . . . . 4 . 9 3 . 5 . Saboteur 2 | . . . . . . . . . . . . 1 . . . . . . . . . . . 1 . . . . Grunt 80 | . 4 . . 2 6 . . . . 2 . 9 5 2 . . 3 . 7 . . 1 . 18 . . 7 14 Brawler 3 | . . . . . . . . . . . . 2 . . . . . . . . . . . . . . . 1 Duelist 4 | . . . . . . . . . . . . 2 . . . . . . 1 . . . . . . . . 1 Sentry 15 | . . 1 . . 1 . . . 1 1 . 1 3 1 . . 1 . . . . . . 3 . 1 1 . Demolisher 1 | . . . . . . . . . . . . . . . . . . . . . . . . . . . 1 . Hunter 16 | . . . . . 2 . . . 1 . . 1 . . . . 4 . . . . 2 . 3 . . 1 2 Programmer 16 | . . . . . . . . 1 . . . . 7 . 1 . . 2 . . . . . 1 . . 1 3 Heavy 1 | . . . . . 1 . . . . . . . . . . . . . . . . . . . . . . . Behemoth 2 | . . . . . . . . . . 1 . . . . . . . . . . . 1 . . . . . . Compactor 3 | . . . . . . . 3 . . . . . . . . . . . . . . . . . . . . . Cetus Guard 4 | . . . . . . . . . . . . . . . . . . . . . . . . . 4 . . . Striker 1 | . . . . . . . . . . . . . . . . . . . . . . . . . . . 1 . Decomposer 1 | . . . . . . . . . . . . . . . 1 . . . . . . . . . . . . . Packrat 1 | . . . . . . . . . 1 . . . . . . . . . . . . . . . . . . . Samaritan 1 | . . . . . . . . . 1 . . . . . . . . . . . . . . . . . . . Assembled 4 | . . . . 4 . . . . . . . . . . . . . . . . . . . . . . . . Savage 1 | . . . . . . . . . . . . . . . . . . . . . . . . 1 . . . . Guerrilla 1 | . . . . . . . . . . . . . . . . . . . . . . . . 1 . . . . Mutant 1 | . . . . . . . . . 1 . . . . . . . . . . . . . . . . . . . Best Kill Streak 11 | . 3 3 . 2 7 1 2 7 3 3 . 11 11 4 1 . 3 2 5 . . 4 1 5 4 1 5 10 Combat Bots Only 11 | . 1 3 . 2 6 . 2 1 3 3 . 11 8 4 1 . 3 2 5 . . 4 . 5 3 1 4 9 Max Kills in Single Turn 8 | . 2 1 . 1 2 1 1 2 1 1 . 3 8 4 1 . 3 1 2 . . 1 1 2 1 1 3 5 Gunslinging 1 | . . . . . . . . . . . . . . . . . . . . . . . . . . . . 1 Exploded 5 | . 1 . . . . . . . . . . 3 5 4 . . 3 . 2 . . 1 . 2 . . 3 4 Melee . | . . . . . . . . . . . . . . . . . . . . . . . . . . . . . Uniques/NPCs Destroyed . | . . . . . . . . . . . . . . . . . . . . . . . . . . . . . Combat | -11 -10 -10 -10 -9 -8 -7 -7 -7 -7 -7 -7 -6 -6 -6 -6 -6 -5 -5 -5 -5 -5 -4 -4 -4 -4 -4 -3 -3 -------- Run | Yrd Mat Min Exi Min Mat Fac Was Fac Low Low Zio Pro Fac Low Low Dat Pro Fac Upp Upp Zhi Pro Fac Ext Cet Arc Res Qua Hostile Shots Fired 1585 | . 28 27 . 13 77 . 10 4 54 72 . 47 218 123 24 5 29 7 9 . . 53 . 324 28 2 116 315 Missed 488 | . 5 5 . 1 24 . . 1 16 18 . 23 77 49 14 . 6 3 4 . . 14 . 89 7 1 42 89 Hits 1097 | . 23 22 . 12 53 . 10 3 38 54 . 24 141 74 10 5 23 4 5 . . 39 . 235 21 1 74 226 Melee 30 | . . . . 2 . . 10 . . . . . . . . . . . . . . . . . . . . 18 Projectile 1067 | . 23 22 . 10 53 . . 3 38 54 . 24 141 74 10 5 23 4 5 . . 39 . 235 21 1 74 208 AOE 3 | . . . . . . . . . . . . . . . . . . . . . . . . . . . 2 1 Critical Strikes 53 | . . 1 . 2 4 . 6 . 1 2 . 2 1 2 . . . . . . . . . 8 5 . 3 16 Part Disruptions 1 | . . . . . . . . . . . . . . . . . . . . . . . . . . . . 1 Damage Taken 19885 | . 304 223 . 182 749 . 489 42 359 999 . 524 1989 714 165 235 440 79 129 . . 761 . 5055 349 113 1799 4186 Core 3705 | . 41 36 . 38 162 . . . 40 189 . 52 270 148 82 . 128 . 34 . . 142 . 982 56 . 65 1240 Absorbed by Shields 1264 | . . . . . . . . . . . . . 97 . . . . . . . . . . 306 166 . . 695 Reduced by Siege Mode 5 | . . . . . . . . . . . . . . . . . . . . . . 5 . . . . . . Redirected to Shielding 33 | . . . . . . . . . . 18 . 15 . . . . . . . . . . . . . . . . Core Remaining (%) 57 | 100 . . . 54 70 . . . . . . 59 . . . . 26 . . . . 82 . . . 9 . . Volleys Fired 938 | 1 43 17 . 23 56 4 19 24 16 23 . 33 138 17 6 . 28 6 3 . 6 30 3 319 18 7 58 40 Largest 6 | 1 2 2 . 2 3 2 2 3 3 3 . 3 3 2 2 . 3 1 1 . 1 1 3 4 4 4 6 6 Hottest 328 | 20 85 85 . 131 196 106 160 110 96 150 . 195 153 88 50 . 137 47 50 . 28 88 112 282 140 258 328 256 Shots Fired 2223 | 1 66 32 . 47 126 6 47 66 48 55 . 59 294 24 11 1 44 18 17 . 6 73 9 718 72 25 198 160 Gun 1593 | 1 65 32 . 47 126 2 13 42 33 32 . 12 102 . 10 1 11 12 14 . 6 58 6 526 72 25 189 156 Cannon 584 | . . . . . . 4 34 24 15 22 . 44 190 23 . . 31 6 . . . 12 3 176 . . . . Launcher 32 | . 1 . . . . . . . . 1 . 3 2 1 1 . 2 . 3 . . 3 . 4 . . 7 4 Special 14 | . . . . . . . . . . . . . . . . . . . . . . . . 12 . . 2 . Kinetic 1750 | 1 43 15 . 9 17 4 31 64 48 52 . 28 268 23 10 1 41 18 14 . 6 65 9 589 72 21 147 154 Thermal 321 | . 22 17 . 38 109 2 16 2 . 2 . 8 19 . . . 1 . . . . . . 37 . 4 42 2 Explosive 32 | . 1 . . . . . . . . 1 . 3 2 1 1 . 2 . 3 . . 3 . 4 . . 7 4 Electromagnetic 108 | . . . . . . . . . . . . 20 5 . . . . . . . . 5 . 78 . . . . Robot Hit Streak 23 | 1 7 5 . 4 17 18 22 12 8 13 . 6 15 6 4 . 5 12 6 . 7 23 . 21 9 5 10 16 Robot Miss Streak 19 | . 5 5 . 4 7 2 2 5 1 4 . 4 19 9 3 . 3 1 7 . . 3 3 9 7 2 7 3 Penetration Max 4 | . . . . . . . 1 . . . . . 1 . . . . . . . . . . 2 1 . 2 4 Secondary Targets 26 | . . 1 . 2 2 . . . . . . . . . . . . . . . . . . 5 3 . 3 10 Max Gunslinging Chain 1 | . . 1 . 1 1 . . . . . . . . . . . . . . . . . . 1 1 . 1 1 Autonomous 101 | . . . . . 17 . 14 . . . . . . . . . . 12 14 . . 44 . . . . . . Shots Hit Robots 1353 | 1 39 14 . 13 76 3 42 34 30 39 . 29 179 21 7 . 20 16 14 . 6 58 . 454 31 14 108 105 Core Hits 857 | . 17 7 . 11 42 1 7 18 13 15 . 50 190 23 6 . 31 4 27 . 1 24 1 217 20 6 60 66 Critical Kills 19 | . . . . . . . . . . . . . 1 . . . . 1 1 . . . . 2 1 . . 13 Critical Parts Destroyed 39 | . . . . . . . . 1 . 1 . . 2 . . . . . . . . 1 . 11 1 . 2 20 Critical Strikes 102 | . 2 1 . 2 8 1 3 2 2 2 . . 5 . . . 4 1 1 . 1 2 . 28 2 . 2 33 Burn 15 | . 2 1 . 2 8 . . . . . . . . . . . . . . . . . . 2 . . . . Destroy 62 | . . . . . . . 2 1 . 1 . . 3 . . . . 1 1 . 1 1 . 14 2 . 2 33 Blast 24 | . . . . . . 1 1 1 2 1 . . 2 . . . 4 . . . . 1 . 11 . . . . Sever 1 | . . . . . . . . . . . . . . . . . . . . . . . . 1 . . . . Melee Attacks 2 | . . . . . . . . . . . . . . . . . . . . . . . . 2 . . . . Impact . | . . . . . . . . . . . . . . . . . . . . . . . . . . . . . Slashing 2 | . . . . . . . . . . . . . . . . . . . . . . . . 2 . . . . Piercing . | . . . . . . . . . . . . . . . . . . . . . . . . . . . . . Sneak Attacks 1 | . . . . . . . . . . . . . . . . . . . . . . . . 1 . . . . Combat Hostiles . | . . . . . . . . . . . . . . . . . . . . . . . . . . . . . Follow-up Attacks . | . . . . . . . . . . . . . . . . . . . . . . . . . . . . . Damage Inflicted 44737 | 11 638 204 . 249 1548 120 1804 804 568 1180 . 2227 5002 605 167 . 1308 569 1281 . 117 1948 18 15052 1192 404 4622 3099 Guns 25268 | 11 529 204 . 249 1548 15 438 458 349 517 . 162 1489 . 114 . 43 408 350 . 117 1261 18 9833 1192 404 3549 2010 Cannons 11049 | . . . . . . 105 1366 346 219 508 . 505 2770 420 . . 442 161 . . . 180 . 4027 . . . . Explosions 8253 | . 109 . . . . . . . . 155 . 1560 743 185 53 . 823 . 931 . . 507 . 1031 . . 1073 1083 Melee 146 | . . . . . . . . . . . . . . . . . . . . . . . . 146 . . . . Ramming 6 | . . . . . . . . . . . . . . . . . . . . . . . . . . . . 6 Kinetic 30389 | 11 362 58 . 62 425 105 1268 763 568 920 . 329 4124 420 114 . 452 569 350 . 117 1407 18 11541 1192 404 2825 1985 Thermal 4187 | . 167 146 . 187 1123 15 536 41 . 105 . 244 111 . . . 33 . . . . . . 730 . . 724 25 Explosive 7964 | . 109 . . . . . . . . 155 . 1392 743 185 53 . 823 . 931 . . 507 . 910 . . 1073 1083 Electromagnetic 2045 | . . . . . . . . . . . . 262 24 . . . . . . . . 34 . 1725 . . . . Impact . | . . . . . . . . . . . . . . . . . . . . . . . . . . . . . Slashing 146 | . . . . . . . . . . . . . . . . . . . . . . . . 146 . . . . Piercing . | . . . . . . . . . . . . . . . . . . . . . . . . . . . . . Highest Corruption 27 | . . . . 4 3 2 21 23 23 23 23 4 4 4 5 5 5 . . . . . . 10 10 10 5 27 Average Corruption 9 | . . . . 4 2 2 16 22 23 23 23 3 2 4 4 5 5 . . . . . . 9 10 10 4 10 Corruption Purged . | . . . . . . . . . . . . . . . . . . . . . . . . . . . . . Corruption Blocked . | . . . . . . . . . . . . . . . . . . . . . . . . . . . . . Effects 423 | . . . . 13 2 1 16 44 42 50 3 4 16 15 14 3 77 . . . . . . 34 36 14 24 15 Message Errors 93 | . . . . 6 . . 1 7 10 14 2 . 4 2 4 1 19 . . . . . . 10 9 1 3 . Matter Fused 109 | . . . . 1 2 . 1 12 12 13 . . 4 3 5 1 25 . . . . . . 4 11 2 9 4 Heat Flow Errors 35 | . . . . . . . 2 3 3 3 1 1 1 2 1 . 5 . . . . . . 2 4 4 3 . Energy Discharges 52 | . . . . 3 . 1 1 6 6 8 . . 2 3 . . 9 . . . . . . 3 5 1 2 2 Parts Rejected 5 | . . . . . . . 3 . . . . 1 . . . . . . . . . . . . . 1 . . Parts Fused 7 | . . . . . . . . 1 . 1 . . . 1 . . . . . . . . . 1 2 1 . . Data Loss (minor) 49 | . . . . 2 . . 2 5 6 3 . 1 3 1 . . 10 . . . . . . 5 3 2 3 3 Data Loss (major) 16 | . . . . . . . . 3 1 1 . . . 1 2 . 2 . . . . . . 1 2 1 1 1 Misfires 18 | . . . . 1 . . . 2 2 1 . . 2 1 . 1 5 . . . . . . 1 . . 2 . Alerts 8 | . . . . . . . 2 . . 1 . . . . 2 . 2 . . . . . . . . . 1 . Misdirections 7 | . . . . . . . 3 1 . . . . . . . . . . . . . . . 1 . . . 2 Weapon Failures 24 | . . . . . . . 1 4 2 5 . 1 . 1 . . . . . . . . . 6 . 1 . 3 Overload Shots . | . . . . . . . . . . . . . . . . . . . . . . . . . . . . . Overflow Damage 485 | . . . . . . 35 . 27 . 8 . 34 66 . 4 . 44 . . . . . . 118 . . 121 28 Projectiles 221 | . . . . . . 35 . 27 . . . . 23 . . . 29 . . . . . . 107 . . . . Explosions 264 | . . . . . . . . . . 8 . 34 43 . 4 . 15 . . . . . . 11 . . 121 28 Melee . | . . . . . . . . . . . . . . . . . . . . . . . . . . . . . Knockbacks 97 | . . . . . . . . 3 . . . 3 63 11 . . 5 2 . . . . . 10 . . . . Impact . | . . . . . . . . . . . . . . . . . . . . . . . . . . . . . Kinetic 91 | . . . . . . . . 3 . . . 3 58 11 . . 5 2 . . . . . 9 . . . . Secondary 6 | . . . . . . . . . . . . . 5 . . . . . . . . . . 1 . . . . Self-Inflicted Damage 378 | . . . . . . . . . . 83 . . 115 11 51 . 30 . 35 . . . . 17 . . . 36 Shots 20 | . . . . . . . . . . 5 . . 5 1 3 . 2 . 2 . . . . 1 . . . 1 Rammed 1 | . . . . . . . . . . . . . . . . . . . . . . . . . . . . 1 Targets Rammed 1 | . . . . . . . . . . . . . . . . . . . . . . . . . . . . 1 Kicked . | . . . . . . . . . . . . . . . . . . . . . . . . . . . . . Crushed . | . . . . . . . . . . . . . . . . . . . . . . . . . . . . . Highest Temperature 470 | . 12 35 . 80 200 16 350 225 294 442 222 470 457 240 181 . 265 . . . . 186 102 318 198 158 197 14 Average Temperature 77 | . 6 17 . 31 67 12 116 50 101 111 115 129 85 125 95 . 70 . . . . 80 46 50 101 54 76 14 Received Heat Transfer 3359 | . 168 54 . 75 261 . . . 48 517 . 150 262 273 24 . 18 . 36 . . 48 . 768 . 27 54 576 Effects 11 | . . . . . . . 2 . . . . 4 2 . . . . . . . . . . 3 . . . . Shutdowns 5 | . . . . . . . 1 . . . . 3 1 . . . . . . . . . . . . . . . Energy Bleed 1 | . . . . . . . . . . . . . 1 . . . . . . . . . . . . . . . Interference 5 | . . . . . . . 1 . . . . 1 . . . . . . . . . . . 3 . . . . Siege Activations 3 | . . . . . . . . . . . . . . . . . . . . . 2 1 . . . . . . Total Turns 76 | . . . . . . . . . . . . . . . . . . . . . 72 4 . . . . . . Longest Duration 66 | . . . . . . . . . . . . . . . . . . . . . 66 4 . . . . . . Martial Activations . | . . . . . . . . . . . . . . . . . . . . . . . . . . . . . Shielding Activations . | . . . . . . . . . . . . . . . . . . . . . . . . . . . . . Robots Disrupted . | . . . . . . . . . . . . . . . . . . . . . . . . . . . . . Combat Hostiles . | . . . . . . . . . . . . . . . . . . . . . . . . . . . . . Robots Corrupted 5 | . . . . . . . . . . . . . . . . . . . . . . . . 5 . . . . Combat Hostiles . | . . . . . . . . . . . . . . . . . . . . . . . . . . . . . Parts Fried 9 | . . . . . . . . . . . . 1 . . . . . . . . . 1 . 5 2 . . . Impact Corruptions . | . . . . . . . . . . . . . . . . . . . . . . . . . . . . . Robots Melted 1 | . . . . . 1 . . . . . . . . . . . . . . . . . . . . . . . Combat Hostiles 1 | . . . . . 1 . . . . . . . . . . . . . . . . . . . . . . . Parts Melted 10 | . . 2 . 1 4 . . . . . . . . . . . . . . . . . . 3 . . . . Heat Transferred 7582 | . 555 407 . 555 2885 37 . . . . . 300 148 . . . 37 . . . . . . 1724 . . 897 37 Parts Sabotaged 5 | . . . . . . . . . . . . . . . . . . . . . . . . . . . . 5 Parts Stolen . | . . . . . . . . . . . . . . . . . . . . . . . . . . . . . Parts Stripped . | . . . . . . . . . . . . . . . . . . . . . . . . . . . . . Power Chain Reactions 3 | . . . . . . . . . . . . 2 . . . . . . . . . . . 1 . . . . Alert | -11 -10 -10 -10 -9 -8 -7 -7 -7 -7 -7 -7 -6 -6 -6 -6 -6 -5 -5 -5 -5 -5 -4 -4 -4 -4 -4 -3 -3 ------- Run | Yrd Mat Min Exi Min Mat Fac Was Fac Low Low Zio Pro Fac Low Low Dat Pro Fac Upp Upp Zhi Pro Fac Ext Cet Arc Res Qua Maximum Alert Level 5 | . . . . . . . . . . . . . 3 . . . . . . . . . . 5 4 2 3 5 Low Security (%) 63 | 100 100 100 . 100 100 100 100 100 . . . . 57 . . . . 100 . . . . 100 63 . . 11 . Level 1 5 | . . . . . . . . . . . . . 15 . . . . . . . . . . 7 . . 1 . Level 2 15 | . . . . . . . . . . . . . 21 . . . . . . . . . . 20 . 100 18 . Level 3 10 | . . . . . . . . . . . . . 5 . . . . . . . . . . 4 89 . 68 . Level 4 2 | . . . . . . . . . . . . . . . . . . . . . . . . 3 10 . . . Level 5 . | . . . . . . . . . . . . . . . . . . . . . . . . 1 . . . . High Security . | . . . . . . . . . . . . . . . . . . . . . . . . . . . . . Max Security 1 | . . . . . . . . . . . . . . . . . . . . . . . . . . . . 99 Peak Influence 2113 | . 71 64 . 50 165 63 3 61 . . . . 808 . . . . 46 . . . . 31 1823 1192 603 902 2113 Initial 996 | . . 2 . . 1 63 . . . . . . 140 . . . . 9 . . . . 31 . 996 466 160 504 Average 288 | . 31 10 . 2 66 18 . 10 . . . . 231 . . . . 3 . . . . 4 280 977 512 659 1842 Influence Increases 9341 | . 165 121 . 60 373 25 4 147 90 90 . 571 1393 150 45 . 285 60 180 . 5 190 15 2620 600 191 1278 683 Destroy 0b10 Robot/C 5020 | . 80 100 . 40 240 . . 20 80 80 . 480 740 140 20 . 160 40 160 . . 160 . 1120 280 80 580 420 Destroy 0b10 Robot/NC 710 | . 30 5 . 10 45 5 . 70 . . . . 125 . . . 5 . . . 5 . 5 330 10 . 55 10 Destroy Leader 824 | . 26 10 . 10 78 2 . 18 10 10 . 50 196 10 10 . 30 10 20 . . 30 . 136 20 . 108 40 Allied During Kill 1050 | . . 6 . . . . . . . . . 41 . . . . . . . . . . . 372 233 80 318 . Successful Hack 49 | . 5 . . . . . . . . . . . . . . . . . . . . . 2 25 7 . 10 . Disable Machine 330 | . . . . . . 15 . 30 . . . . 135 . . . . . . . . . . 45 . 15 15 75 Destroy Structure 803 | . 9 . . . 10 3 4 9 . . . . 92 . . . . 10 . . . . 8 352 50 16 162 78 Partial Spotted 30 | . . . . . . . . . . . . . 15 . . . . . . . . . . 15 . . . . Lose Combat Pursuer 525 | . 15 . . . . . . . . . . . 90 . 15 . 90 . . . . . . 225 . . 30 60 Influence Decreases 8344 | . 158 128 . 55 237 166 4 146 91 90 . 348 810 673 319 9 269 54 156 46 5 140 65 840 1214 928 811 582 Entered New Map 2724 | . . 5 . . 4 78 . . 1 . . . 83 299 55 9 . 7 9 10 . . 19 . 784 700 269 392 Time Decay 4342 | . 158 113 . 45 183 88 4 146 90 70 . 238 567 334 254 . 249 47 147 36 5 130 46 362 410 198 422 . Lost Part 878 | . . 10 . 10 50 . . . . 20 . 50 160 40 10 . 20 . . . . 10 . 238 20 10 40 190 Lost Ally 400 | . . . . . . . . . . . . 60 . . . . . . . . . . . 240 . 20 80 . Squads Dispatched 56 | . . . . 1 2 . . 2 . . . 1 16 . . . . 3 . . . . . 12 . . 7 12 Investigation 8 | . . . . 1 . . . . . . . . 1 . . . . . . . . . . 2 . . 4 . Extermination 9 | . . . . . . . . 1 . . . . 5 . . . . 3 . . . . . . . . . . Reinforcement 12 | . . . . . 2 . . 1 . . . . 1 . . . . . . . . . . 5 . . 3 . Assault 18 | . . . . . . . . . . . . 1 . . . . . . . . . . . 5 . . . 12 Garrison 9 | . . . . . . . . . . . . . 9 . . . . . . . . . . . . . . . Intercept . | . . . . . . . . . . . . . . . . . . . . . . . . . . . . . Searches Triggered . | . . . . . . . . . . . . . . . . . . . . . . . . . . . . . Construction Impeded 4 | . . . . . . . . . . . . . . . . . . . . . . . . 4 . . . . Haulers Reinforced 3 | . . . . . . . . . . . . . . . . . . . . . . . . . . . 3 . Active Scanning Responses . | . . . . . . . . . . . . . . . . . . . . . . . . . . . . . Cargo Convoy Interrupts . | . . . . . . . . . . . . . . . . . . . . . . . . . . . . . Stealth | -11 -10 -10 -10 -9 -8 -7 -7 -7 -7 -7 -7 -6 -6 -6 -6 -6 -5 -5 -5 -5 -5 -4 -4 -4 -4 -4 -3 -3 --------- Run | Yrd Mat Min Exi Min Mat Fac Was Fac Low Low Zio Pro Fac Low Low Dat Pro Fac Upp Upp Zhi Pro Fac Ext Cet Arc Res Qua Distress Signals 20 | . 2 . . . 2 . . . . . . . 4 . . . . . . . . . . 3 2 . 6 1 Communications Jammed 53 | . . . . . 3 . . . . . . . . . . . . . . . . . . 32 . 1 17 . Distress Signals 53 | . . . . . 3 . . . . . . . . . . . . . . . . . . 32 . 1 17 . Times Spotted 383 | . 8 5 . 6 22 2 6 7 5 4 . 24 43 7 2 4 10 3 8 . . 7 1 73 15 6 44 71 Peak Tracking Total 31 | . 4 3 . 2 5 1 3 2 3 3 . 10 6 4 1 4 4 2 5 . . 2 2 5 5 2 5 31 Tactical Retreats 28 | . 1 . . . . . . . . . . . 5 . 1 . 6 . . . . . . 11 . . 2 2 Traps | -11 -10 -10 -10 -9 -8 -7 -7 -7 -7 -7 -7 -6 -6 -6 -6 -6 -5 -5 -5 -5 -5 -4 -4 -4 -4 -4 -3 -3 ------- Run | Yrd Mat Min Exi Min Mat Fac Was Fac Low Low Zio Pro Fac Low Low Dat Pro Fac Upp Upp Zhi Pro Fac Ext Cet Arc Res Qua Traps Triggered 9 | . . . . . 3 1 . 3 . . . . 1 . . . . . . . . . . 1 . . . . Indirectly . | . . . . . . . . . . . . . . . . . . . . . . . . . . . . . Trap Hack Attempts . | . . . . . . . . . . . . . . . . . . . . . . . . . . . . . Triggered . | . . . . . . . . . . . . . . . . . . . . . . . . . . . . . Disarmed . | . . . . . . . . . . . . . . . . . . . . . . . . . . . . . Reprogrammed . | . . . . . . . . . . . . . . . . . . . . . . . . . . . . . Reused . | . . . . . . . . . . . . . . . . . . . . . . . . . . . . . Traps Extracted . | . . . . . . . . . . . . . . . . . . . . . . . . . . . . . Installed . | . . . . . . . . . . . . . . . . . . . . . . . . . . . . . Triggered . | . . . . . . . . . . . . . . . . . . . . . . . . . . . . . Machines | -11 -10 -10 -10 -9 -8 -7 -7 -7 -7 -7 -7 -6 -6 -6 -6 -6 -5 -5 -5 -5 -5 -4 -4 -4 -4 -4 -3 -3 ---------- Run | Yrd Mat Min Exi Min Mat Fac Was Fac Low Low Zio Pro Fac Low Low Dat Pro Fac Upp Upp Zhi Pro Fac Ext Cet Arc Res Qua Machines Disabled 25 | . . . . . . 1 . 2 1 . . . 9 . . 1 . . . . . . . 4 . 1 1 5 Max in Single Turn 6 | . . . . . . 1 . 1 1 . . . 6 . . 1 . . . . . . . 1 . 1 . 2 Machines Repaired . | . . . . . . . . . . . . . . . . . . . . . . . . . . . . . Machines Dismantled 1 | . . . . . . . . . . . . . . . . . . . . . . . . 1 . . . . Machines Sabotaged . | . . . . . . . . . . . . . . . . . . . . . . . . . . . . . Overloaded Fab Kills . | . . . . . . . . . . . . . . . . . . . . . . . . . . . . . Hacking | -11 -10 -10 -10 -9 -8 -7 -7 -7 -7 -7 -7 -6 -6 -6 -6 -6 -5 -5 -5 -5 -5 -4 -4 -4 -4 -4 -3 -3 --------- Run | Yrd Mat Min Exi Min Mat Fac Was Fac Low Low Zio Pro Fac Low Low Dat Pro Fac Upp Upp Zhi Pro Fac Ext Cet Arc Res Qua Machines Accessed 37 | . 2 . 1 1 . . . 2 . . . . 1 . 1 4 . 1 . . 9 . 1 8 3 1 2 . Terminals 15 | . 2 . . . . . . . . . . . . . . . . 1 . . . . 1 8 3 . . . Fabricators 3 | . . . . . . . . 2 . . . . . . . . . . . . . . . . . . 1 . Repair Stations . | . . . . . . . . . . . . . . . . . . . . . . . . . . . . . Recycling Units . | . . . . . . . . . . . . . . . . . . . . . . . . . . . . . Scanalyzers . | . . . . . . . . . . . . . . . . . . . . . . . . . . . . . Garrison Access 2 | . . . . . . . . . . . . . 1 . . . . . . . . . . . . . 1 . Total Hacks 145 | . 4 . 1 1 . . . 3 . . . . 4 . 1 30 . 3 . . 47 . 2 16 4 25 4 . Successful 123 | . 2 . 1 1 . . . 1 . . . . . . 1 30 . 3 . . 47 . 1 6 4 25 1 . Failed 22 | . 2 . . . . . . 2 . . . . 4 . . . . . . . . . 1 10 . . 3 . Catastrophic 7 | . 1 . . . . . . 1 . . . . 3 . . . . . . . . . . 1 . . 1 . Database Lockouts . | . . . . . . . . . . . . . . . . . . . . . . . . . . . . . Manual 12 | . 2 . 1 . . . . . . . 1 . . . . 1 . . . . 5 . . . 2 . . . Terminals 29 | . 4 . . . . . . . . . . . . . . . . 3 . . . . 2 16 4 . . . Fabricators 4 | . . . . . . . . 3 . . . . . . . . . . . . . . . . . . 1 . Repair Stations . | . . . . . . . . . . . . . . . . . . . . . . . . . . . . . Recycling Units . | . . . . . . . . . . . . . . . . . . . . . . . . . . . . . Scanalyzers . | . . . . . . . . . . . . . . . . . . . . . . . . . . . . . Garrison Access 7 | . . . . . . . . . . . . . 4 . . . . . . . . . . . . . 3 . Terminal Hacks 121 | . 2 . 1 1 . . . . . . . . . . 1 30 . 3 . . 47 . 1 6 4 25 . . Record 78 | . . . . . . . . . . . . . . . . 11 . 3 . . 36 . . . 3 25 . . Part Schematic 15 | . . . . . . . . . . . . . . . . 12 . . . . 3 . . . . . . . Robot Schematic 4 | . . . . . . . . . . . . . . . . 4 . . . . . . . . . . . . Robot Analysis 4 | . . . . . . . . . . . . . . . . . . . . . 4 . . . . . . . Prototype ID Bank 7 | . . . . . . . . . . . . . . . . 3 . . . . 4 . . . . . . . Open Door 10 | . . . . 1 . . . . . . . . . . 1 . . . . . . . 1 6 1 . . . Terminal Index 1 | . 1 . . . . . . . . . . . . . . . . . . . . . . . . . . . Dispatch Records 1 | . 1 . . . . . . . . . . . . . . . . . . . . . . . . . . . Proto ID Catalog 1 | . . . 1 . . . . . . . . . . . . . . . . . . . . . . . . . Fabricator Hacks 1 | . . . . . . . . 1 . . . . . . . . . . . . . . . . . . . . Network Status 1 | . . . . . . . . 1 . . . . . . . . . . . . . . . . . . . . Repair Station Hacks . | . . . . . . . . . . . . . . . . . . . . . . . . . . . . . Recycling Unit Hacks . | . . . . . . . . . . . . . . . . . . . . . . . . . . . . . Scanalyzer . | . . . . . . . . . . . . . . . . . . . . . . . . . . . . . Garrison Access Hacks 1 | . . . . . . . . . . . . . . . . . . . . . . . . . . . 1 . Unlock Access 1 | . . . . . . . . . . . . . . . . . . . . . . . . . . . 1 . Unauthorized Hacks . | . . . . . . . . . . . . . . . . . . . . . . . . . . . . . Terminals . | . . . . . . . . . . . . . . . . . . . . . . . . . . . . . Fabricators . | . . . . . . . . . . . . . . . . . . . . . . . . . . . . . Repair Stations . | . . . . . . . . . . . . . . . . . . . . . . . . . . . . . Recycling Units . | . . . . . . . . . . . . . . . . . . . . . . . . . . . . . Scanalyzers . | . . . . . . . . . . . . . . . . . . . . . . . . . . . . . Garrison Access . | . . . . . . . . . . . . . . . . . . . . . . . . . . . . . Data Cores Recovered . | . . . . . . . . . . . . . . . . . . . . . . . . . . . . . Used . | . . . . . . . . . . . . . . . . . . . . . . . . . . . . . Hacking Detections 16 | . 2 . . . . . . 1 . . . . 1 . . . . . . . . . 1 6 3 . 2 . Full Trace Events 4 | . 1 . . . . . . . . . . . 1 . . . . . . . . . . 2 . . . . Feedback Events . | . . . . . . . . . . . . . . . . . . . . . . . . . . . . . Feedback Blocked . | . . . . . . . . . . . . . . . . . . . . . . . . . . . . . Robot Schematics Acquired 4 | . . . . . . . . . . . . . . . . 4 . . . . . . . . . . . . Robots Built . | . . . . . . . . . . . . . . . . . . . . . . . . . . . . . Authchips . | . . . . . . . . . . . . . . . . . . . . . . . . . . . . . Time . | . . . . . . . . . . . . . . . . . . . . . . . . . . . . . Total Robot Build Rating . | . . . . . . . . . . . . . . . . . . . . . . . . . . . . . Part Schematics Acquired 15 | . . . . . . . . . . . . . . . . 12 . . . . 3 . . . . . . . Parts Built . | . . . . . . . . . . . . . . . . . . . . . . . . . . . . . Authchips . | . . . . . . . . . . . . . . . . . . . . . . . . . . . . . Time . | . . . . . . . . . . . . . . . . . . . . . . . . . . . . . Total Part Build Rating . | . . . . . . . . . . . . . . . . . . . . . . . . . . . . . Parts Repaired . | . . . . . . . . . . . . . . . . . . . . . . . . . . . . . Time . | . . . . . . . . . . . . . . . . . . . . . . . . . . . . . Parts Recycled . | . . . . . . . . . . . . . . . . . . . . . . . . . . . . . Recycled Matter . | . . . . . . . . . . . . . . . . . . . . . . . . . . . . . Retrieved Matter . | . . . . . . . . . . . . . . . . . . . . . . . . . . . . . Retrieved Components . | . . . . . . . . . . . . . . . . . . . . . . . . . . . . . Parts Scanalyzed . | . . . . . . . . . . . . . . . . . . . . . . . . . . . . . Part Schematics Acquired . | . . . . . . . . . . . . . . . . . . . . . . . . . . . . . Parts Damaged . | . . . . . . . . . . . . . . . . . . . . . . . . . . . . . Bothacking | -11 -10 -10 -10 -9 -8 -7 -7 -7 -7 -7 -7 -6 -6 -6 -6 -6 -5 -5 -5 -5 -5 -4 -4 -4 -4 -4 -3 -3 ------------ Run | Yrd Mat Min Exi Min Mat Fac Was Fac Low Low Zio Pro Fac Low Low Dat Pro Fac Upp Upp Zhi Pro Fac Ext Cet Arc Res Qua Used RIF Installer . | . . . . . . . . . . . . . . . . . . . . . . . . . . . . . Robots Hacked 1 | . . . . . . . . . . . . . . . . . . . . . . . . . . . 1 . Non-combat 1 | . . . . . . . . . . . . . . . . . . . . . . . . . . . 1 . Combat . | . . . . . . . . . . . . . . . . . . . . . . . . . . . . . Robot Hacks Applied 1 | . . . . . . . . . . . . . . . . . . . . . . . . . . . 1 . find_fabricator 1 | . . . . . . . . . . . . . . . . . . . . . . . . . . . 1 . Relay Couplers Released . | . . . . . . . . . . . . . . . . . . . . . . . . . . . . . Fabnet Peak Effective % . | . . . . . . . . . . . . . . . . . . . . . . . . . . . . . Robots Rewired 6 | . . . . . . . . . . . . . . . . . . . . . . . . 6 . . . . Allies Hacked . | . . . . . . . . . . . . . . . . . . . . . . . . . . . . . Hacks Repelled . | . . . . . . . . . . . . . . . . . . . . . . . . . . . . . Allies | -11 -10 -10 -10 -9 -8 -7 -7 -7 -7 -7 -7 -6 -6 -6 -6 -6 -5 -5 -5 -5 -5 -4 -4 -4 -4 -4 -3 -3 -------- Run | Yrd Mat Min Exi Min Mat Fac Was Fac Low Low Zio Pro Fac Low Low Dat Pro Fac Upp Upp Zhi Pro Fac Ext Cet Arc Res Qua Total Allies 24 | . . 1 . . . . . . . . 4 . . . . . . . . . . . . 14 5 . . . Largest Group 8 | . . 1 . . . . . . . . 4 4 . . . . . . . . . . . 8 6 6 4 . Highest-Rated Group 639 | . . 31 . . . . . . . . 98 98 . . . . . . . . . . . 430 639 639 384 . Highest-Rated Ally 159 | . . 31 . . . . . . . . 39 39 . . . . . . . . . . . 159 159 159 96 . Total Orders . | . . . . . . . . . . . . . . . . . . . . . . . . . . . . . Ally Attacks 315 | . . 3 . . . . . . . . . 52 . . . . . . . . . . . 135 28 27 70 . Total Damage 8932 | . . 63 . . . . . . . . . 539 . . . . . . . . . . . 3670 1188 971 2501 . Kills 56 | . . 1 . . . . . . . . . 8 . . . . . . . . . . . 21 8 3 15 . Allies Corrupted 1 | . . . . . . . . . . . . . . . . . . . . . . . . 1 . . . . Allies Melted 1 | . . . . . . . . . . . . . . . . . . . . . . . . 1 . . . . Intel | -11 -10 -10 -10 -9 -8 -7 -7 -7 -7 -7 -7 -6 -6 -6 -6 -6 -5 -5 -5 -5 -5 -4 -4 -4 -4 -4 -3 -3 ------- Run | Yrd Mat Min Exi Min Mat Fac Was Fac Low Low Zio Pro Fac Low Low Dat Pro Fac Upp Upp Zhi Pro Fac Ext Cet Arc Res Qua Active Infowar (turns) 29407 | . 99 841 583 800 125 . . . . . . . 2291 745 559 177 2952 790 725 868 4367 785 287 9692 987 405 1037 292 Terrain 43 | . . . . . . . . . . . . . . . . . . . . . . . . 43 . . . . Decoding 26959 | . . . . . . . . . . . . . 2291 745 559 177 2952 790 725 868 4367 785 287 9692 987 405 1037 292 T.N.C. 10826 | . 99 841 583 800 . . . . . . . . . . . . . . . . . . . 8503 . . . . Jamming 11086 | . . . . . 125 . . . . . . . . . . . . 162 725 868 4367 785 287 1606 987 405 769 . Robot Analysis Total 4 | . . . . . . . . . . . . . . . . . . . . . 4 . . . . . . . Derelict Logs Recovered 12 | . . 1 . 1 . . . . 1 . . 1 . 2 . . 2 . 1 2 . 1 . . . . . . Drone Launches . | . . . . . . . . . . . . . . . . . . . . . . . . . . . . . Drone Recoveries . | . . . . . . . . . . . . . . . . . . . . . . . . . . . . . Decoded 0b10 Intel 195 | . . . . . . . . . . . . . 58 . . . . 20 . . . . 9 59 8 5 28 8 Traps 32 | . . . . . . . . . . . . . 14 . . . . 1 . . . . 1 15 . . . 1 Emergency Access 19 | . . . . . . . . . . . . . 11 . . . . . . . . . 1 2 . . 3 2 Items 97 | . . . . . . . . . . . . . 23 . . . . 17 . . . . 3 32 1 . 16 5 Machines 29 | . . . . . . . . . . . . . 7 . . . . 2 . . . . 3 5 3 2 7 . Patrols 6 | . . . . . . . . . . . . . . . . . . . . . . . . 4 1 . 1 . Guards 6 | . . . . . . . . . . . . . 3 . . . . . . . . . 1 1 . . 1 . Exits 6 | . . . . . . . . . . . . . . . . . . . . . . . . . 3 3 . . Exploration | -11 -10 -10 -10 -9 -8 -7 -7 -7 -7 -7 -7 -6 -6 -6 -6 -6 -5 -5 -5 -5 -5 -4 -4 -4 -4 -4 -3 -3 ------------- Run | Yrd Mat Min Exi Min Mat Fac Was Fac Low Low Zio Pro Fac Low Low Dat Pro Fac Upp Upp Zhi Pro Fac Ext Cet Arc Res Qua Turns Passed 37649 | 61 408 841 583 934 464 279 258 806 964 946 2571 719 3117 745 559 177 2952 790 725 868 4367 785 287 9692 987 405 1037 322 Spaces Moved 15232 | 44 180 486 364 545 154 125 112 436 568 445 1546 306 1044 373 308 140 794 215 237 406 1025 411 133 3649 458 202 431 95 Core 1625 | 15 . . . 115 2 . . . . 20 . . 21 362 117 1 658 . . . . . . 303 . . . 11 Treads 8956 | 29 180 486 364 118 82 125 112 436 568 425 1546 306 681 11 . . . . . 131 1025 411 133 648 430 202 431 76 Legs 1973 | . . . . 312 70 . . . . . . . . . . . 106 190 . . . . . 1267 28 . . . Wheels 63 | . . . . . . . . . . . . . 63 . . . . . . . . . . . . . . . Hover 2607 | . . . . . . . . . . . . . 279 . 191 139 30 25 237 275 . . . 1431 . . . . Flight 8 | . . . . . . . . . . . . . . . . . . . . . . . . . . . . 8 Fastest Speed 45 | 50 160 160 160 120 120 170 160 160 160 160 160 160 50 50 50 120 180 260 240 160 160 160 160 50 120 160 160 45 Average Speed 171 | 122 160 160 160 150 180 170 168 160 160 193 160 193 214 149 157 125 338 287 294 214 160 160 160 128 157 160 160 137 Slowest Speed 900 | 160 160 160 160 300 300 170 250 160 160 450 160 240 900 240 350 400 550 330 300 240 160 160 160 450 160 160 160 160 Overloaded Moves . | . . . . . . . . . . . . . . . . . . . . . . . . . . . . . Propulsion Burnouts . | . . . . . . . . . . . . . . . . . . . . . . . . . . . . . Robots Hopped . | . . . . . . . . . . . . . . . . . . . . . . . . . . . . . Potential Cave-ins 11 | . . . . . . . . . . . . . . . . . . . . . . . 2 6 . . 3 . Cave-ins Triggered 2 | . . . . . . . . . . . . . . . . . . . . . . . . 2 . . . . Exploration Rate (%) 51 | 3 29 98 68 77 23 7 91 18 72 66 85 56 22 62 50 72 83 5 51 54 62 54 4 73 92 95 12 13 Regions Visited 28 Branch Regions 19 Pre-discovered Areas 8 | . . . . 1 . . . . 1 . 1 . . . . 1 . . . 1 3 . . . . . . . Known Exits Taken 6 | . . . . . 1 . . . . . . . . . . . 1 1 1 . . . . . 1 1 . . Unknown Exits Taken 20 | 1 1 1 1 1 . . . 1 1 1 1 1 1 1 1 1 . . . 1 1 1 1 1 . . 1 . Scrap Searched 29 | . . 1 . 1 . . . . 5 3 . 4 . 2 2 . 3 . 2 3 . 3 . . . . . . Spaces Dug 129 | . . . . . . . . . . . . . 54 . . . 51 . . . . . 3 4 9 5 3 . Terrain Destroyed 1072 | . 8 . . . 14 2 4 7 6 21 . 49 125 31 34 . 123 4 72 . . 87 8 297 25 14 86 55 Melee . | . . . . . . . . . . . . . . . . . . . . . . . . . . . . . Projectile 352 | . . . . . 14 2 4 7 6 3 . 5 21 . . . 23 4 2 . . 25 8 175 25 14 9 5 AOE 714 | . 8 . . . . . . . . 18 . 44 104 31 34 . 100 . 70 . . 62 . 122 . . 76 45 Terrain Rammed . | . . . . . . . . . . . . . . . . . . . . . . . . . . . . . Walls Destroyed . | . . . . . . . . . . . . . . . . . . . . . . . . . . . . . Machines Disabled . | . . . . . . . . . . . . . . . . . . . . . . . . . . . . . Actions | -11 -10 -10 -10 -9 -8 -7 -7 -7 -7 -7 -7 -6 -6 -6 -6 -6 -5 -5 -5 -5 -5 -4 -4 -4 -4 -4 -3 -3 --------- Run | Yrd Mat Min Exi Min Mat Fac Was Fac Low Low Zio Pro Fac Low Low Dat Pro Fac Upp Upp Zhi Pro Fac Ext Cet Arc Res Qua Total 25004 | 50 235 519 366 611 239 187 145 491 587 483 1644 369 1661 537 370 145 1020 382 258 406 3747 506 201 8056 682 265 650 192 Wait 8268 | . . 3 . 33 4 53 . 9 3 8 91 19 423 134 41 . 179 149 14 . 2702 51 62 3921 184 49 136 . Move 15202 | 43 179 485 363 544 153 125 111 435 567 444 1545 305 1043 372 307 139 793 214 236 404 1024 410 132 3646 457 201 430 95 Hop . | . . . . . . . . . . . . . . . . . . . . . . . . . . . . . Pick Up 112 | 3 7 6 1 . 10 1 3 5 . 1 2 1 2 1 5 . 2 2 . . 1 3 . 33 6 4 6 7 Fast Attach 132 | . . . . 5 2 . 5 6 1 2 2 8 28 2 4 3 7 4 . 1 5 1 2 38 . 1 . 5 Attach 107 | 3 5 1 . 1 8 1 2 4 . 4 1 . 3 6 5 . 6 1 . . 2 4 . 24 8 1 9 8 Detach 41 | . 1 . . . 1 . 1 2 . 1 1 . 3 4 1 . 4 . 1 . 1 1 . 11 3 . 4 1 Swap 51 | . . 4 . 1 1 1 . 3 . . . 2 2 . . . 1 1 3 . . 3 . 18 1 2 5 3 Drop 119 | . . 3 2 4 4 2 3 3 . . 2 1 19 1 1 3 . 5 1 1 5 3 2 33 5 . 1 15 Fire 938 | 1 43 17 . 23 56 4 19 24 16 23 . 33 138 17 6 . 28 6 3 . 6 30 3 319 18 7 58 40 Melee 2 | . . . . . . . . . . . . . . . . . . . . . . . . 2 . . . . Ram 2 | . . . . . . . 1 . . . . . . . . . . . . . . . . . . . . 1 Kick . | . . . . . . . . . . . . . . . . . . . . . . . . . . . . . Crush . | . . . . . . . . . . . . . . . . . . . . . . . . . . . . . Escape Stasis 19 | . . . . . . . . . . . . . . . . . . . . . . . . 2 . . . 17 Rewire 3 | . . . . . . . . . . . . . . . . . . . . . 1 . . 1 . . 1 . Trap . | . . . . . . . . . . . . . . . . . . . . . . . . . . . . . Miscellaneous 8 | . . . . . . . . . . . . . . . . . . . . . . . . 8 . . . . Route ------- -11/Scrapyard -10/Materials -10/Mines (discovered 3 exits: [*Mat x2] / *Exi) -10/Exiles (discovered 2 exits: *Min x2) -9/Mines -8/Materials -7/Factory -7/Waste -7/Factory -7/Lower Caves -7/Lower Caves -7/Zion -6/Proximity Caves -6/Factory (discovered 2 exits: Fac / [*Low]) -6/Lower Caves -6/Lower Caves (discovered 2 exits: *Fac / *Dat) -6/Data Miner -5/Proximity Caves -5/Factory (discovered 2 exits: *Upp x2) -5/Upper Caves -5/Upper Caves (discovered 2 exits: *Fac / *Zhi) -5/Zhirov -4/Proximity Caves -4/Factory -4/Extension (discovered 2 exits: *Res / *Cet) -4/Cetus (discovered 3 exits: *Res x2 / *Arc) -4/Archives (discovered 3 exits: *Res / *Hub x2) -3/Research (discovered 2 exits: [*Qua] / Gar) -3/Quarantine History --------- Turn | Location | Event 10 | -11/Scrapyard | Discovered new exit (range 14) 62 | -11/Scrapyard | Entered Materials 175 | -10/Materials | Discovered new exit (range 12) 301 | -10/Materials | Build established: Mutant 470 | -10/Materials | Entered Mines 481 | -10/Mines | Met a Derelict bent on vengeance 658 | -10/Mines | Build established: Scavenger-Mutant 678 | -10/Mines | Discovered new exit (range 12) 818 | -10/Mines | Learned 8 Materials zone layouts 838 | -10/Mines | Received a Mining Laser from a helpful Derelict 898 | -10/Mines | Discovered new exit (range 9) 1305 | -10/Mines | Deemed a non-threat by the Exiles lab entrance 1305 | -10/Mines | Discovered new exit (range 5) 1311 | -10/Mines | Entered Exiles 1350 | -10/Exiles | Met 8R-AWN 1379 | -10/Exiles | Met EX-HEX 1420 | -10/Exiles | Met EX-BIN 1446 | -10/Exiles | Aligned with FarCom system 1447 | -10/Exiles | Given EX-Vault access code 1486 | -10/Exiles | Opened EX-Vault 1500 | -10/Exiles | Found AWS/Gauss 1529 | -10/Exiles | Warned to stay clear of 0b10 Research branches 1574 | -10/Exiles | Met EX-DEC 1632 | -10/Exiles | Discovered new exit (range 10) 1875 | -10/Exiles | Discovered new exit (range 14) 1894 | -10/Exiles | Left Exiles lab with AWS/Gauss 1894 | -10/Exiles | Entered Mines 1939 | -9/Mines | Assembled infested the area 2008 | -9/Mines | Learned location of Storage (-8) 2163 | -9/Mines | Lost 3 parts (2n1u) 2256 | -9/Mines | Met a Derelict shopkeep closing up shop 2789 | -9/Mines | Discovered new exit (range 13) 2828 | -9/Mines | Entered Materials 2828 | -8/Materials | Evolved 4 slots: Power x1, Utility x2, Weapon x1 2829 | -8/Materials | Identified exit to Factory 3038 | -8/Materials | Lost 3 parts (2n1w) 3292 | -8/Materials | Entered Factory 3292 | -7/Factory | Evolved 2 slots: Propulsion x2 3571 | -7/Factory | Sucked down chute 3571 | -7/Factory | Entered Waste 3577 | -7/Waste | Spotted C-40 Crusher 3586 | -7/Waste | EMP discharged 3586 | -7/Waste | System corruption reached 10% 3589 | -7/Waste | Spotted C-40 Crusher 3591 | -7/Waste | Destroyed C-40 Crusher 3600 | -7/Waste | Destroyed C-40 Crusher 3629 | -7/Waste | Spotted C-40 Crusher 3633 | -7/Waste | Spotted C-40 Crusher 3636 | -7/Waste | Destroyed C-40 Crusher 3655 | -7/Waste | Spotted C-40 Crusher 3660 | -7/Waste | Spotted C-40 Crusher 3660 | -7/Waste | Crushed by Compactor (0 parts destroyed, 1 dropped) 3663 | -7/Waste | Crushed by Compactor (0 parts destroyed, 1 dropped) 3666 | -7/Waste | Crushed by Compactor (1 part destroyed, 1 dropped) 3686 | -7/Waste | EMP discharged 3701 | -7/Waste | Crushed by Compactor (0 parts destroyed, 1 dropped) 3706 | -7/Waste | AWS/Gauss suddenly broke down 3786 | -7/Waste | EMP discharged 3811 | -7/Waste | Discovered new exit (range 12) 3829 | -7/Waste | Entered Factory 3965 | -7/Factory | Build established: Mutant 4043 | -7/Factory | Found Prototype Launcher 4045 | -7/Factory | Identified Rocket Array 4280 | -7/Factory | Build established: Tank 4627 | -7/Factory | Discovered new exit (range 6) 4635 | -7/Factory | Entered Lower Caves 4757 | -7/Lower Caves | Attacked by a delusional Derelict stockpiling parts 4764 | -7/Lower Caves | Build established: Gunner 5039 | -7/Lower Caves | Encountered a Warlord checkpoint 5055 | -7/Lower Caves | Learned location of Zion (-7) 5247 | -7/Lower Caves | Attracted the attention of an 0b10 checkpoint 5577 | -7/Lower Caves | Discovered new exit (range 8) 5599 | -7/Lower Caves | Entered another Lower Caves area 5867 | -7/Lower Caves | Attracted the attention of an 0b10 checkpoint 6287 | -7/Lower Caves | Spotted B-75 Beast 6364 | -7/Lower Caves | Destroyed B-75 Beast 6394 | -7/Lower Caves | Lost 6 parts (1p1n4w) 6523 | -7/Lower Caves | Discovered new exit (range 15) 6545 | -7/Lower Caves | Entered Zion 6619 | -7/Zion | Build established: Mutant 6620 | -7/Zion | System corruption cleaned by Quarantine Array 6805 | -7/Zion | Gained Derelict followers 7044 | -7/Zion | Found Relay Coupler [Programmer] 7398 | -7/Zion | Discovered new exit (range 15) 7528 | -7/Zion | Received a hallucinogenic algorithm 7528 | -7/Zion | Ran a hallucination algorithm 8286 | -7/Zion | Rebuked by Imprinter 8569 | -7/Zion | Found Prototype Device 8569 | -7/Zion | Identified Mobile Refinery Mk. CCLXVII 9116 | -7/Zion | Entered Proximity Caves 9116 | -6/Proximity Caves | Accompanied by 4 allies 9155 | -6/Proximity Caves | Learned 4 Factory zone layouts 9471 | -6/Proximity Caves | Build established: Gunner 9665 | -6/Proximity Caves | Lost 3 parts (1u2w) 9720 | -6/Proximity Caves | Attracted the attention of an 0b10 outpost 9770 | -6/Proximity Caves | Destroyed 11 combat bots 9771 | -6/Proximity Caves | Discovered new exit (range 13) 9835 | -6/Proximity Caves | Entered Factory 9835 | -6/Factory | Evolved 2 slots: Utility x2 9836 | -6/Factory | Identified exit to Factory 10150 | -6/Factory | Build established: Mutant 10556 | -6/Factory | Build established: Tank 10956 | -6/Factory | Build established: Skirmisher 11130 | -6/Factory | Spotted B-75 Beast 11540 | -6/Factory | Garrison activated, responded to threat 11952 | -6/Factory | Garrison activated, responded to threat 12508 | -6/Factory | Found Prototype Launcher 12508 | -6/Factory | Identified Scatter Rocket Array 12515 | -6/Factory | Found Scatter Rocket Array 12598 | -6/Factory | Garrison activated, responded to threat 12820 | -6/Factory | Destroyed 8 combat bots 12838 | -6/Factory | Lost 10 parts (1p2n3u4w) 12944 | -6/Factory | Discovered new exit (range 3) 12952 | -6/Factory | Entered Lower Caves 12967 | -6/Lower Caves | Attracted the attention of an 0b10 checkpoint 13109 | -6/Lower Caves | Build established: Mutant 13281 | -6/Lower Caves | Learned Factory garrison access intel 13637 | -6/Lower Caves | Discovered new exit (range 14) 13697 | -6/Lower Caves | Entered another Lower Caves area 13698 | -6/Lower Caves | Core integrity fell below 50% 13699 | -6/Lower Caves | Attracted the attention of an 0b10 checkpoint 13713 | -6/Lower Caves | Discovered exit to Factory (range 5) 14043 | -6/Lower Caves | Build established: Derelict-Mutant 14242 | -6/Lower Caves | Discovered new exit (range 6) 14256 | -6/Lower Caves | Entered Data Miner 14258 | -6/Data Miner | Discovered new exit (range 6) 14281 | -6/Data Miner | Met Data Miner 14305 | -6/Data Miner | Learned location of Section 7 (-3) 14305 | -6/Data Miner | Acquired the access code to Warlord's prototype stash 14330 | -6/Data Miner | Received God Mode back door access code from Data Miner 14359 | -6/Data Miner | Ran a hallucination algorithm 14425 | -6/Data Miner | Data Conduit disabled 14433 | -6/Data Miner | Entered Proximity Caves 14464 | -5/Proximity Caves | Lost 3 parts (1n1u1w) 15098 | -5/Proximity Caves | Learned location of 1 exit from Upper Caves 16451 | -5/Proximity Caves | Learned Factory emergency access door positions 16594 | -5/Proximity Caves | Build established: Mutant 16663 | -5/Proximity Caves | Spotted B-75 Beast 17275 | -5/Proximity Caves | Attracted the attention of an 0b10 checkpoint 17319 | -5/Proximity Caves | Discovered exit to Factory (range 11) 17385 | -5/Proximity Caves | Entered Factory 17385 | -5/Factory | Evolved 2 slots: Utility x2 17386 | -5/Factory | Identified exit to Upper Caves 17388 | -5/Factory | Loaded intel: 4 garrison access locations 17670 | -5/Factory | Build established: Scavenger-Skirmisher 18130 | -5/Factory | Discovered exit to Upper Caves (range 16) 18175 | -5/Factory | Entered Upper Caves 18176 | -5/Upper Caves | Identified exit to Upper Caves 18469 | -5/Upper Caves | Build established: Scavenger-Gunner 18563 | -5/Upper Caves | Learned Factory stockpile data 18900 | -5/Upper Caves | Entered another Upper Caves area 19049 | -5/Upper Caves | Discovered new exit (range 10) 19134 | -5/Upper Caves | Build established: Scavenger-Mutant 19304 | -5/Upper Caves | Learned 4 Factory zone layouts 19718 | -5/Upper Caves | Entered a destroyed Warlord outpost 19754 | -5/Upper Caves | Discovered new exit (range 10) 19768 | -5/Upper Caves | Entered Zhirov 19768 | -5/Zhirov | Discovered new exit (range 3) 19797 | -5/Zhirov | Met Zhirov 19847 | -5/Zhirov | Learned location of Quarantine (-3) 19847 | -5/Zhirov | Learned location of Testing (-2) 19847 | -5/Zhirov | Learned location of Command (-1) 19866 | -5/Zhirov | Build established: Derelict-Mutant 19877 | -5/Zhirov | Zhirov requested help retrieving the SGEMP Prototype 21465 | -5/Zhirov | Ran a hallucination algorithm 24135 | -5/Zhirov | Entered Proximity Caves 24348 | -4/Proximity Caves | Build established: Derelict-Tank 24471 | -4/Proximity Caves | Spotted B-86 Titan 24514 | -4/Proximity Caves | Destroyed B-86 Titan 24801 | -4/Proximity Caves | Learned Research stockpile data 24828 | -4/Proximity Caves | AWS/Gauss suddenly broke down 24854 | -4/Proximity Caves | Discovered new exit (range 10) 24920 | -4/Proximity Caves | Entered Factory 24920 | -4/Factory | Evolved 2 slots: Utility x1, Weapon x1 25196 | -4/Factory | Discovered new exit (range 9) 25207 | -4/Factory | Entered Extension 25447 | -4/Extension | Lost 4 parts (1p1n2w) 25657 | -4/Extension | Disrupted transfer network 25767 | -4/Extension | Build established: Gunner 25920 | -4/Extension | Lost 12 parts (1p2n4u5w) 26084 | -4/Extension | Rescued a captive Derelict 26159 | -4/Extension | Build established: Mutant 27310 | -4/Extension | Build established: Assassin 27677 | -4/Extension | Build established: Skirmisher 28240 | -4/Extension | Core integrity fell below 50% 28272 | -4/Extension | Lost 3 parts (1p2w) 28573 | -4/Extension | Build established: Scavenger-Gunner 29355 | -4/Extension | Build established: Scavenger-Skirmisher 30751 | -4/Extension | Rescued a captive Derelict 31947 | -4/Extension | Build established: Scavenger-Mutant 32493 | -4/Extension | Found Launcher Loader 32515 | -4/Extension | Build established: Scavenger-Gunner 33207 | -4/Extension | First assault squad dispatched 34154 | -4/Extension | Crushed by falling debris 34156 | -4/Extension | Crushed by falling debris 34157 | -4/Extension | System corruption reached 10% 34187 | -4/Extension | Lost 5 parts (2p3u) 34215 | -4/Extension | Rescued A7 34252 | -4/Extension | Rescued a captive Derelict 34253 | -4/Extension | Rescued a captive Derelict 34275 | -4/Extension | Rescued a captive Derelict 34277 | -4/Extension | Rescued a captive Derelict 34342 | -4/Extension | Rescued a captive Derelict 34374 | -4/Extension | Rescued a captive Derelict 34468 | -4/Extension | Core integrity fell below 20% 34584 | -4/Extension | Lost 3 allies 34726 | -4/Extension | Build established: Scavenger-Skirmisher 34891 | -4/Extension | Discovered new exit (range 10) 34892 | -4/Extension | Discovered new exit (range 6) 34899 | -4/Extension | Entered Cetus 34899 | -4/Cetus | Accompanied by 1 ally (A7) 34904 | -4/Cetus | Acquired a Cetus Manufacturing Module code from A7 34920 | -4/Cetus | Spotted Cetus Guard 34920 | -4/Cetus | Spotted Cetus Guard 34921 | -4/Cetus | Spotted Cetus Guard 34928 | -4/Cetus | Destroyed Cetus Guard 34928 | -4/Cetus | Spotted Cetus Guard 34930 | -4/Cetus | Allies destroyed Cetus Guard 34931 | -4/Cetus | Destroyed Cetus Guard 34938 | -4/Cetus | Destroyed Cetus Guard 35077 | -4/Cetus | Escorted A7 to Cetus Mainframe 35124 | -4/Cetus | Started Cetus Manufacturing Module 35149 | -4/Cetus | Manufactured an Enhanced Grunt 35174 | -4/Cetus | Manufactured an Enhanced Grunt 35199 | -4/Cetus | Manufactured an Enhanced Grunt 35224 | -4/Cetus | Manufactured an Enhanced Grunt 35249 | -4/Cetus | Manufactured an Enhanced Grunt 35357 | -4/Cetus | Identified exit to Archives 35414 | -4/Cetus | Identified exit to Research 35414 | -4/Cetus | Spotted Cetus Guard 35414 | -4/Cetus | Spotted Cetus Guard 35414 | -4/Cetus | Spotted Cetus Guard 35421 | -4/Cetus | Allies destroyed Cetus Guard 35423 | -4/Cetus | Spotted Cetus Guard 35423 | -4/Cetus | Destroyed Cetus Guard 35426 | -4/Cetus | Allies destroyed Cetus Guard 35427 | -4/Cetus | Allies destroyed Cetus Guard 35446 | -4/Cetus | Met Revision 17 35649 | -4/Cetus | Security sweep announced 35714 | -4/Cetus | Build established: Scavenger-Tank 35886 | -4/Cetus | Entered Archives 35886 | -4/Archives | Accompanied by 6 allies (A7) 35891 | -4/Archives | Received a hacking code to weaken MAIN.C 35934 | -4/Archives | Identified exit to Hub_04(d) 36122 | -4/Archives | Unable to access archive contents 36291 | -4/Archives | Entered Research 36291 | -3/Research | Accompanied by 4 allies 36291 | -3/Research | Evolved 2 slots: Weapon x2 36491 | -3/Research | Revision forces began assault on 0b10 36572 | -3/Research | Met up with Revision 17++ 36676 | -3/Research | Build established: Scavenger-Executioner 36963 | -3/Research | Identified exit to Garrison 36991 | -3/Research | Research terminal network offline 37065 | -3/Research | Spotted Striker 37074 | -3/Research | Destroyed Striker 37272 | -3/Research | Discovered new exit (range 16) 37328 | -3/Research | Entered Quarantine 37329 | -3/Quarantine | Maximum security lockdown engaged 37452 | -3/Quarantine | System corruption reached 10% 37586 | -3/Quarantine | Lost 4 parts (1p3w) 37600 | -3/Quarantine | Destroyed 9 combat bots 37614 | -3/Quarantine | Spotted Executioner 37614 | -3/Quarantine | Spotted Executioner 37624 | -3/Quarantine | Core integrity fell below 50% 37625 | -3/Quarantine | Spotted Investigator 37625 | -3/Quarantine | Scanned by Researcher 37644 | -3/Quarantine | Core integrity fell below 20% 37650 | -3/Quarantine | Destroyed by G-73 Enforcer with Phase Gun Last Messages --------------- Dropped Impulse Thruster Array. Stasis bubble strength at 52. Stasis bubble strength at 46. Held in stasis. Investigator is analyzing... Penetrated by Slug. Slug penetrates Investigator. Stasis bubble strength at 40. C-30 ARC bursts open, deploying its payload. G-73 Enforcer unfolds itself. G-67 Veteran unfolds itself. B-74 Champion unfolds itself. Stasis bubble strength at 34. L-61 Swordsman destroyed. Stasis bubble strength at 28. Held in stasis. Stasis bubble strength at 22. Stasis bubble strength at 16. [Achievement: 30k Club] [Achievement: Punisher] Map ----- +----------------------------------------------------+ | ????????????????????????????????????????????? | | ????????????????????????????????? #??????? | | ???????????????????????????????? ##????? | | ???????????????????????????????? #??? | | ??????????????????????????# ?? ??? | | ???????????+??????????????# ?? % % #??? | | ??????????????????????????# "" *!! #??? | | ??????????????????????????? "" %*%% #??? | | ???????????????????????????# " [!% ##?? | | ???????????????????????????# #?? | | ??????????!???????????+##### #?? | | ?????????????????C????? [ #?? | | ??????????????????????? ^ |!! #??? | | ??????????????????????^ [!=[ #??? | | ????????????????????????" """ !%*%! ##??? | | ?????????#####?????????""" """" =[!|# #??? | | ?????????? ??w?????""" " %! [= #??? | | ??????????? ???# """ ^" [ [! ##### | | ???????????"" ???# " | | ???????????""" ??# %" " | | ????????&" "&" ?# """"T " "%" | | ?????? """ """ ??????""""" = !" | | ??????? ?????### # # ! ####### | | ??????????? #????#?########! " #?????? | | ??????????????#;;;;;##;;##########[%*"###???? | | ??????????????# ; @% g mg e g%%=[= +???? | | ??????????????### lp g cb g![!=###???? | | ????????????????# E lg gE b==!=[[#?????? | | ????????????????# gg m g g*=!!*#?????? | | ??????????????#######/###########[%%######### | | ?????????????# % g=b% # g|=%=!!= | | ???????????#"" %gg # "" =!!=[ | | ???????????#"" """ """ """gg # ""i=!/!/| | | ?????????????" """ """l""" g/%""" !==[ ! | | ????????????? """ """ " " #==%![!![]! | | ?????????????? g # """%**![!! | | ?????????????? """ """ "" # """!= | | ????????????????"" """ S"" # """ | | ???????????????????""" "" # | | ??????????????????? # | | ??????????????????########################### | | | | | | | | | | | | | | | | | | | +----------------------------------------------------+ Best States ------------- Heat Dissipation 84 Coolant Potential 120 Energy Generation 51 Energy Capacity 875 Matter Stores 1300 Matter Capacity 1300 Sight Range 16 Terrain Scan Range 24 Terrain Scan Density 10 Jamming Range 16 Base Temperature (-) 200 EM Shielding 2 Armor Coverage 600 Propulsion Shielding 15 Weapon Cycling 15 Evasion (%) 55 Targeting Accuracy 10 Melee Accuracy 6 Launcher Accuracy 30 Core Analysis 6 Armor Integrity Analysis 40 Recoil Reduction 4 Particle Charging 25 Kinecelleration 40 Offensive Hacking 14 Authchip Count 1 Item Schematics ----------------- Combat Drone Bay | -6/Data Miner | Free Lgt. Regenerative Plating | -6/Data Miner | Free Cld. Nuclear Pulse Thruster | -6/Data Miner | Free Exp. Heat Sink | -6/Data Miner | Free Hvy. Proton Cannon | -6/Data Miner | Free Imp. Linear Gravjet | -6/Data Miner | Free Adv. Hardlight Generator | -6/Data Miner | Free Hvy. Gauss Cannon | -6/Data Miner | Free Linear Gravjet | -6/Data Miner | Free Imp. Cloaking Device | -6/Data Miner | Free Adv. Recalibrator | -6/Data Miner | Free Mic. Antimatter Reactor | -6/Data Miner | Free Assault Drone Bay | -5/Zhirov | Free Exp. Optical Array | -5/Zhirov | Free Imp. Arc Thrower | -5/Zhirov | Free Robot Schematics ------------------ P-60 Hacker | -6/Data Miner | Free E-15 Imp | -6/Data Miner | Free S-27 Virus | -6/Data Miner | Free P-70 Sage | -6/Data Miner | Free Fabricated ------------ Nothing Repaired ---------- Nothing Alien Tech Used ----------------- None Achievements -------------- 30k Club No Signal Punisher Revolutionary Research Rockin' Loadout Total Silence Challenges ------------ None Game ------ Seed RelaySuspensionShockpuncher Manual? 0 Play Time 03:23:55 Cumulative 182.1 hours Start 2025.10.10 @ 12:30:10 End 2025.10.11 @ 13:47:54 Sessions 1 Manual Loads 0 Difficulty Rogue Special Mode None Game No. 550 Rogue 549 Adventurer 1 Explorer 0 Win Type - Total 0 Types 0/0/0/0/0/0/0/0/0/0 Lore% 61 Gallery% 59 Achievement% 46 Wizard Run 0 Options --------- Layout 1 ASCII 0 Keyboard 0 Movement Mouse Keybinds 0 Fullscreen 1 Font 24/Smallcaps Map View 50x35 Zoom Use 0% Tactical HUD 0 Map Filters NONE Filters NONE Steam 1 RUN: cbc8888a-5e14-43f6-8353-d5bc4989c644